fUSD/lending_fUSD_20250302
["ID","MTS","AMOUNT","RATE_DAILY","PERIOD"]
[355158481,1740937870008,-686.18,0.00025619,2]
[355158482,1740937870020,-500.0,0.00025619,2]
[355158483,1740937870030,-500.0,0.00025619,2]
[355158484,1740937870040,-500.0,0.00025619,2]
[355158485,1740937870050,-390.01,0.00025619,2]
[355158486,1740937870061,-500.0,0.00025619,2]
[355158487,1740937870072,-625.18,0.00025619,2]
[355158488,1740937870082,-649.02,0.00025619,2]
[355158489,1740937870093,-500.0,0.00025619,2]
[355158490,1740937870103,-765.63,0.00025619,2]
[355158491,1740937870116,-500.0,0.00025619,2]
[355158492,1740937870126,-500.0,0.00025619,2]
[355158493,1740937870137,-1189.75,0.00025619,2]
[355158494,1740937870147,-500.0,0.00025619,2]
[355158495,1740937870158,-500.0,0.00025619,2]
[355158496,1740937870169,-533.52,0.00025619,2]
[355158497,1740937870179,-500.0,0.00025619,2]
[355158498,1740937870190,-767.22,0.00025619,2]
[355158499,1740937870204,-2132.66,0.00025619,2]
[355158500,1740937870214,-500.0,0.0002562,2]
[355158501,1740937870223,-500.0,0.0002562,2]
[355158502,1740937870233,-500.0,0.0002562,2]
[355158503,1740937870243,-500.0,0.0002562,2]
[355158504,1740937870252,-420.67,0.0002562,2]
[355158505,1740937870262,-500.0,0.0002562,2]
[355158506,1740937870273,-500.0,0.0002562,2]
[355158507,1740937870283,-500.0,0.0002562,2]
[355158508,1740937870292,-500.0,0.0002562,2]
[355158509,1740937870302,-500.0,0.0002562,2]
[355158510,1740937870312,-500.0,0.0002562,2]
[355158511,1740937870322,-608.81,0.0002562,2]
[355158512,1740937870332,-561.04,0.0002562,2]
[355158513,1740937870341,-500.0,0.0002562,2]
[355158514,1740937870350,-571.0,0.0002562,2]
[355158515,1740937870360,-500.0,0.0002562,2]
[355158516,1740937870370,-500.0,0.0002562,2]
[355158517,1740937870380,-500.0,0.0002562,2]
[355158518,1740937870390,-500.0,0.0002562,2]
[355158519,1740937870399,-500.0,0.0002562,2]
[355158520,1740937870408,-500.0,0.0002562,2]
[355158521,1740937870417,-500.0,0.0002562,2]
[355158522,1740937870427,-500.0,0.0002562,2]
[355158523,1740937870437,-500.0,0.0002562,2]
[355158524,1740937870452,-648.58,0.0002562,2]
[355158525,1740937870461,-500.0,0.0002562,2]
[355158526,1740937870471,-554.65,0.0002562,2]
[355158527,1740937870481,-358.0,0.0002562,2]
[355158528,1740937870491,-500.0,0.0002562,2]
[355158529,1740937870500,-500.0,0.0002562,2]
[355158530,1740937870510,-500.0,0.0002562,2]
[355158531,1740937870520,-500.0,0.0002562,2]
[355158532,1740937870530,-500.0,0.0002562,2]
[355158533,1740937870540,-500.0,0.0002562,2]
[355158534,1740937870549,-500.0,0.0002562,2]
[355158535,1740937870560,-500.0,0.0002562,2]
[355158536,1740937870569,-500.0,0.0002562,2]
[355158537,1740937870579,-500.0,0.0002562,2]
[355158538,1740937870589,-500.0,0.0002562,2]
[355158539,1740937870599,-500.0,0.0002562,2]
[355158540,1740937870608,-500.0,0.0002562,2]
[355158541,1740937870618,-500.0,0.0002562,2]
[355158542,1740937870628,-500.0,0.0002562,2]
[355158543,1740937870638,-500.0,0.0002562,2]
[355158544,1740937870648,-500.0,0.0002562,2]
[355158545,1740937870658,-500.0,0.0002562,2]
[355158546,1740937870667,-500.0,0.0002562,2]
[355158547,1740937870677,-500.0,0.0002562,2]
[355158548,1740937870686,-500.0,0.0002562,2]
[355158549,1740937870701,-2232.0,0.00025699,2]
[355158550,1740937870710,-588.82,0.00025718,2]
[355158551,1740937870720,-500.0,0.00025718,2]
[355158552,1740937870731,-500.0,0.00025718,2]
[355158553,1740937870741,-500.0,0.00025718,2]
[355158554,1740937870751,-500.0,0.00025718,2]
[355158555,1740937870761,-500.0,0.00025718,2]
[355158556,1740937870771,-500.0,0.00025718,2]
[355158557,1740937870780,-500.0,0.00025718,2]
[355158558,1740937870790,-500.0,0.00025718,2]
[355158559,1740937870800,-500.0,0.00025718,2]
[355158560,1740937870810,-641.23,0.00025718,2]
[355158561,1740937870820,-500.0,0.00025718,2]
[355158562,1740937870830,-553.15,0.00025718,2]
[355158563,1740937870841,-500.0,0.00025718,2]
[355158564,1740937870851,-500.0,0.00025718,2]
[355158565,1740937870860,-500.0,0.00025718,2]
[355158566,1740937870870,-500.0,0.00025718,2]
[355158567,1740937870880,-500.0,0.00025718,2]
[355158568,1740937870890,-500.0,0.00025718,2]
[355158569,1740937870899,-500.0,0.00025718,2]
[355158570,1740937870909,-500.0,0.00025718,2]
[355158571,1740937870919,-500.0,0.00025718,2]
[355158572,1740937870930,-500.0,0.00025718,2]
[355158573,1740937870946,-520.82,0.00025718,2]
[355158574,1740937870955,-500.0,0.00025718,2]
[355158575,1740937870965,-500.0,0.00025718,2]
[355158576,1740937870974,-500.0,0.00025718,2]
[355158577,1740937870986,-549.79,0.00025718,2]
[355158578,1740937870995,-500.0,0.00025718,2]
[355158579,1740937871005,-583.9,0.00025718,2]
[355158580,1740937871022,-500.0,0.00025718,2]
[355158581,1740937871035,-394.38,0.00025718,2]
[355158582,1740937871044,-500.0,0.00025718,2]
[355158583,1740937871054,-500.0,0.00025718,2]
[355158584,1740937871063,-500.0,0.00025718,2]
[355158585,1740937871073,-221.82,0.00025718,2]
[355158586,1740937871083,-500.0,0.00025718,2]
[355158587,1740937871093,-356.6,0.00025718,2]
[355158588,1740937871102,-500.0,0.00025718,2]
[355158589,1740937871112,-239.2,0.00025718,2]
[355158590,1740937871122,-500.0,0.00025718,2]
[355158591,1740937871133,-500.0,0.00025718,2]
[355158592,1740937871143,-500.0,0.00025718,2]
[355158593,1740937871154,-500.0,0.00025718,2]
[355158594,1740937871165,-500.0,0.00025718,2]
[355158595,1740937871177,-500.0,0.00025718,2]
[355158596,1740937871187,-550.36,0.00025718,2]
[355158597,1740937871201,-500.0,0.00025718,2]
[355158598,1740937871210,-500.0,0.00025718,2]
[355158599,1740937871220,-627.32,0.00025718,2]
[355158600,1740937871229,-500.0,0.00025718,2]
[355158601,1740937871238,-500.0,0.00025718,2]
[355158602,1740937871247,-617.83,0.00025718,2]
[355158603,1740937871258,-500.0,0.00025718,2]
[355158604,1740937871267,-703.69,0.00025718,2]
[355158605,1740937871276,-281.68,0.00025718,2]
[355158606,1740937871286,-599.32,0.00025718,2]
[355158607,1740937871295,-500.0,0.00025718,2]
[355158608,1740937871307,-500.0,0.00025718,2]
[355158609,1740937871316,-500.0,0.00025718,2]
[355158610,1740937871326,-409.74,0.00025718,2]
[355158611,1740937871336,-500.0,0.00025718,2]
[355158612,1740937871346,-176.62,0.00025718,2]
[355158613,1740937871355,-500.0,0.00025718,2]
[355158614,1740937871365,-500.0,0.00025718,2]
[355158615,1740937871374,-670.1,0.00025718,2]
[355158616,1740937871384,-637.95,0.00025718,2]
[355158617,1740937871395,-813.8,0.00025718,2]
[355158618,1740937871404,-500.0,0.00025718,2]
[355158619,1740937871413,-2192.95,0.00025718,2]
[355158620,1740937871423,-996.91,0.00025718,2]
[355158621,1740937871432,-500.0,0.00025718,2]
[355158622,1740937871444,-807.59,0.00025718,2]
[355158623,1740937871454,-500.0,0.00025718,2]
[355158624,1740937871463,-1250.18,0.00025718,2]
[355158625,1740937871473,-500.0,0.00025718,2]
[355158626,1740937871483,-703.25,0.00025718,2]
[355158627,1740937871493,-1557.45,0.00025718,2]
[355158628,1740937871503,-1624.15,0.00025718,2]
[355158629,1740937871513,-1549.91,0.00025718,2]
[355158630,1740937871522,-1154.14,0.00025718,2]
[355158631,1740937871532,-730.08,0.00025718,2]
[355158632,1740937871542,-500.0,0.00025718,2]
[355158633,1740937871551,-856.1,0.00025718,2]
[355158634,1740937871561,-500.0,0.00025718,2]
[355158635,1740937871571,-1218.98,0.00025718,2]
[355158636,1740937871581,-1590.11,0.00025718,2]
[355158637,1740937871591,-998.58,0.00025718,2]
[355158638,1740937871601,-500.0,0.00025718,2]
[355158639,1740937871611,-761.57,0.00025718,2]
[355158640,1740937871621,-993.48,0.00025718,2]
[355158641,1740937871631,-855.19,0.00025718,2]
[355158642,1740937871643,-500.0,0.00025718,2]
[355158643,1740937871653,-151.0,0.00025718,7]
[355158644,1740937871664,-925.83,0.00025718,2]
[355158645,1740937871673,-532.0,0.00025718,2]
[355158646,1740937871683,-604.56,0.00025718,2]
[355158647,1740937871696,-559.41,0.00025718,2]
[355158648,1740937871706,-500.0,0.00025718,2]
[355158649,1740937871716,-565.81,0.00025718,2]
[355158650,1740937871726,-248.019775,0.00025718,7]
[355158651,1740937871736,-248.019775,0.00025718,7]
[355158652,1740937871747,-151.0,0.00025718,7]
[355158653,1740937871760,-500.0,0.00025718,2]
[355158654,1740937871781,-964.16,0.00025718,2]
[355158655,1740937871791,-649.62,0.00025718,2]
[355158656,1740937871801,-500.0,0.00025718,2]
[355158657,1740937871812,-230.222455,0.00025718,7]
[355158658,1740937871822,-500.0,0.00025718,2]
[355158659,1740937871833,-230.222455,0.00025718,7]
[355158660,1740937871844,-500.0,0.00025718,2]
[355158661,1740937871855,-1097.56,0.00025718,2]
[355158662,1740937871866,-500.0,0.00025718,2]
[355158663,1740937871876,-1028.47,0.00025718,2]
[355158664,1740937871886,-868.34,0.00025718,2]
[355158665,1740937871897,-500.0,0.00025718,2]
[355158666,1740937871907,-945.74,0.00025718,2]
[355158667,1740937871919,-1222.82,0.00025718,2]
[355158668,1740937871929,-500.0,0.00025718,2]
[355158669,1740937871947,-500.0,0.00025718,2]
[355158670,1740937871957,-10000.0,0.00025718,7]
[355158671,1740937871967,-883.05,0.00025718,2]
[355158672,1740937871977,-704.4,0.00025718,2]
[355158673,1740937871987,-10000.0,0.00025718,7]
[355158674,1740937871998,-10000.0,0.00025718,7]
[355158675,1740937872009,-6234.66,0.00025718,2]
[355158676,1740937872019,-557.6,0.00025718,2]
[355158677,1740937872029,-500.0,0.00025718,2]
[355158678,1740937872039,-500.0,0.00025718,2]
[355158679,1740937872049,-500.0,0.00025718,2]
[355158680,1740937872059,-1146.22,0.00025718,2]
[355158681,1740937872068,-500.0,0.00025718,2]
[355158682,1740937872078,-500.0,0.00025718,2]
[355158683,1740937872087,-1442.71,0.00025718,2]
[355158684,1740937872097,-500.0,0.00025719,2]
[355158685,1740937872106,-500.0,0.00025719,2]
[355158686,1740937872115,-500.0,0.00025719,2]
[355158687,1740937872125,-538.14,0.00025719,2]
[355158688,1740937872134,-500.0,0.00025719,2]
[355158689,1740937872144,-500.0,0.00025719,2]
[355158690,1740937872153,-500.0,0.00025719,2]
[355158691,1740937872162,-500.0,0.00025719,2]
[355158692,1740937872171,-500.0,0.00025719,2]
[355158693,1740937872181,-500.0,0.00025719,2]
[355158694,1740937872190,-500.0,0.00025719,2]
[355158695,1740937872203,-500.0,0.00025719,2]
[355158696,1740937872213,-500.0,0.00025719,2]
[355158697,1740937872222,-256.5,0.00025719,2]
[355158698,1740937872232,-500.0,0.00025719,2]
[355158699,1740937872241,-500.0,0.00025719,2]
[355158700,1740937872251,-500.0,0.00025719,2]
[355158701,1740937872261,-500.0,0.00025719,2]
[355158702,1740937872271,-500.0,0.00025719,2]
[355158703,1740937872281,-307.49584663,0.00025719,2]
[355158704,1740937872293,-500.0,0.00025719,2]
[355158705,1740937872303,-500.0,0.00025719,2]
[355158706,1740937872316,-518.68,0.00025719,2]
[355158707,1740937872332,-500.0,0.00025719,2]
[355158708,1740937872342,-500.0,0.00025719,2]
[355158709,1740937872352,-636.11,0.00025719,2]
[355158710,1740937872363,-500.0,0.00025719,2]
[355158711,1740937872373,-648.35,0.00025719,2]
[355158712,1740937872384,-500.0,0.00025719,2]
[355158713,1740937872394,-500.0,0.00025719,2]
[355158714,1740937872404,-500.0,0.00025719,2]
[355158715,1740937872413,-500.0,0.00025719,2]
[355158716,1740937872424,-500.0,0.00025719,2]
[355158717,1740937872434,-588.19,0.00025719,2]
[355158718,1740937872448,-500.0,0.00025719,2]
[355158719,1740937872458,-500.0,0.00025719,2]
[355158720,1740937872468,-500.0,0.00025719,2]
[355158721,1740937872478,-500.0,0.00025719,2]
[355158722,1740937872487,-500.0,0.00025719,2]
[355158723,1740937872497,-500.0,0.00025719,2]
[355158724,1740937872507,-500.0,0.00025719,2]
[355158725,1740937872517,-500.0,0.00025719,2]
[355158726,1740937872530,-500.0,0.00025719,2]
[355158727,1740937872540,-981.07,0.00025719,2]
[355158728,1740937872549,-893.26,0.00025719,2]
[355158729,1740937872559,-726.79,0.00025719,2]
[355158730,1740937872569,-616.74,0.00025719,2]
[355158731,1740937872579,-376.54,0.00025719,2]
[355158732,1740937872589,-303.06,0.00025719,2]
[355158733,1740937872599,-561.65,0.00025719,2]
[355158734,1740937872609,-500.0,0.00025719,2]
[355158735,1740937872620,-500.0,0.00025719,2]
[355158736,1740937872630,-500.0,0.00025719,2]
[355158737,1740937872641,-500.0,0.00025719,2]
[355158738,1740937872651,-500.0,0.00025719,2]
[355158739,1740937872662,-500.0,0.00025719,2]
[355158740,1740937872672,-500.0,0.00025719,2]
[355158741,1740937872683,-500.0,0.00025719,2]
[355158742,1740937872696,-560.28,0.00025719,2]
[355158743,1740937872707,-500.0,0.00025719,2]
[355158744,1740937872717,-500.0,0.00025719,2]
[355158745,1740937872727,-576.41,0.00025719,2]
[355158746,1740937872737,-500.0,0.00025719,2]
[355158747,1740937872747,-500.0,0.00025719,2]
[355158748,1740937872758,-500.0,0.00025719,2]
[355158749,1740937872768,-500.0,0.00025719,2]
[355158750,1740937872778,-500.0,0.00025719,2]
[355158751,1740937872789,-679.32,0.00025719,2]
[355158752,1740937872799,-500.0,0.00025719,2]
[355158753,1740937872810,-500.0,0.00025719,2]
[355158754,1740937872821,-632.6,0.00025719,2]
[355158755,1740937872831,-500.0,0.00025719,2]
[355158756,1740937872842,-500.0,0.00025719,2]
[355158757,1740937872852,-500.0,0.00025719,2]
[355158758,1740937872862,-500.0,0.00025719,2]
[355158759,1740937872872,-370.64,0.00025719,2]
[355158760,1740937872882,-582.51,0.00025719,2]
[355158761,1740937872892,-500.0,0.00025719,2]
[355158762,1740937872902,-500.0,0.00025719,2]
[355158763,1740937872915,-668.22,0.00025719,2]
[355158764,1740937872929,-500.0,0.00025719,2]
[355158765,1740937872940,-574.39,0.00025719,2]
[355158766,1740937872957,-151.0,0.00025719,7]
[355158767,1740937872968,-500.0,0.00025719,2]
[355158768,1740937872978,-151.0,0.00025719,7]
[355158769,1740937872988,-500.0,0.00025719,2]
[355158770,1740937872999,-197.1,0.00025719,2]
[355158771,1740937873011,-661.62,0.00025719,2]
[355158772,1740937873022,-500.0,0.00025719,2]
[355158773,1740937873033,-151.0,0.00025719,7]
[355158774,1740937873044,-386.36,0.00025719,2]
[355158775,1740937873054,-500.0,0.00025719,2]
[355158776,1740937873065,-500.0,0.00025719,2]
[355158777,1740937873075,-500.0,0.00025719,2]
[355158778,1740937873085,-500.0,0.00025719,2]
[355158779,1740937873094,-500.0,0.00025719,2]
[355158780,1740937873104,-500.0,0.00025719,2]
[355158781,1740937873114,-151.0,0.00025719,7]
[355158782,1740937873124,-500.0,0.00025719,2]
[355158783,1740937873134,-500.0,0.00025719,2]
[355158784,1740937873143,-375.690979,0.00025719,7]
[355158785,1740937873152,-375.690979,0.00025719,7]
[355158786,1740937873162,-500.0,0.00025719,2]
[355158787,1740937873172,-151.0,0.00025719,7]
[355158788,1740937873182,-384.517256,0.00025719,7]
[355158789,1740937873196,-500.0,0.00025719,2]
[355158790,1740937873206,-384.517256,0.00025719,7]
[355158791,1740937873216,-151.0,0.00025719,7]
[355158792,1740937873226,-612.47,0.00025719,2]
[355158793,1740937873236,-551.39,0.00025719,2]
[355158794,1740937873246,-151.0,0.00025719,7]
[355158795,1740937873255,-1897.95,0.00025719,2]
[355158796,1740937873266,-500.0,0.00025719,2]
[355158797,1740937873276,-500.0,0.00025719,2]
[355158798,1740937873286,-883.35,0.00025719,2]
[355158799,1740937873296,-500.0,0.00025719,2]
[355158800,1740937873305,-500.0,0.00025719,2]
[355158801,1740937873315,-402.87,0.00025719,2]
[355158802,1740937873325,-1359.56,0.00025719,2]
[355158803,1740937873337,-450.6,0.00025719,2]
[355158804,1740937873347,-151.0,0.00025719,7]
[355158805,1740937873358,-2139.64,0.00025719,2]
[355158806,1740937873368,-500.0,0.00025719,2]
[355158807,1740937873380,-500.0,0.00025719,2]
[355158808,1740937873391,-666.3,0.00025719,2]
[355158809,1740937873401,-500.0,0.00025719,2]
[355158810,1740937873411,-1000.0,0.00025719,2]
[355158811,1740937873421,-506.21,0.00025719,2]
[355158812,1740937873431,-500.0,0.00025719,2]
[355158813,1740937873680,-1243.74,0.00025719,2]
[355158814,1740937873696,-151.0,0.00025719,7]
[355158815,1740937873707,-551.88,0.00025719,2]
[355158816,1740937873718,-1338.27,0.00025719,2]
[355158817,1740937873730,-580.22,0.00025719,2]
[355158818,1740937873742,-500.0,0.00025719,2]
[355158819,1740937873754,-500.0,0.00025719,2]
[355158820,1740937873767,-500.0,0.00025719,2]
[355158821,1740937873779,-500.0,0.00025719,2]
[355158822,1740937873792,-900.63,0.00025719,2]
[355158823,1740937873804,-500.0,0.00025719,2]
[355158824,1740937873815,-711.69,0.00025719,2]
[355158825,1740937873827,-1990.27,0.00025719,2]
[355158826,1740937873838,-1650.214993,0.00025719,7]
[355158827,1740937873849,-1650.214993,0.00025719,7]
[355158828,1740937873859,-500.0,0.00025719,2]
[355158829,1740937873870,-789.39,0.00025719,2]
[355158830,1740937873881,-2000.73,0.00025719,2]
[355158831,1740937873891,-561.03,0.00025719,2]
[355158832,1740937873903,-1144.17,0.00025719,2]
[355158833,1740937873914,-751.482566,0.00025719,7]
[355158834,1740937873924,-500.0,0.00025719,2]
[355158835,1740937873935,-751.482566,0.00025719,7]
[355158836,1740937873951,-500.0,0.00025719,2]
[355158837,1740937873962,-500.0,0.00025719,2]
[355158838,1740937873975,-812.93,0.00025719,2]
[355158839,1740937873986,-615.1,0.00025719,2]
[355158840,1740937873996,-500.0,0.00025719,2]
[355158841,1740937874007,-623.5,0.00025719,2]
[355158842,1740937874019,-500.0,0.00025719,2]
[355158843,1740937874031,-500.0,0.00025719,2]
[355158844,1740937874043,-500.0,0.00025719,2]
[355158845,1740937874055,-762.88,0.00025719,2]
[355158846,1740937874066,-235.73587784,0.00025738,2]
[355158847,1740937874077,-500.0,0.00025752,2]
[355158848,1740937874088,-151.0,0.00025752,7]
[355158849,1740937874101,-763.27,0.00025752,2]
[355158850,1740937874111,-1114.43,0.00025753,2]
[355158851,1740937874123,-500.0,0.00025753,2]
[355158852,1740937874135,-678.56,0.00025753,2]
[355158853,1740937874147,-500.0,0.00025753,2]
[355158854,1740937874157,-500.0,0.00025753,2]
[355158855,1740937874168,-500.0,0.00025753,2]
[355158856,1740937874179,-701.59,0.00025753,2]
[355158857,1740937874189,-500.0,0.00025753,2]
[355158858,1740937874204,-500.0,0.00025753,2]
[355158859,1740937874216,-4000.0,0.00025753,2]
[355158860,1740937874226,-362.39064584,0.00025762,4]
[355158861,1740937874237,-501.43389673,0.00025773,2]
[355158862,1740937874247,-344.22812849,0.000258,2]
[355158863,1740937874257,-170.96,0.00025809,2]
[355158864,1740937874267,-2231.13453195,0.00025881,2]
[355158865,1740937874277,-500.0,0.00025892,2]
[355158866,1740937874287,-500.0,0.00025892,2]
[355158867,1740937874297,-1027.09,0.00025892,2]
[355158868,1740937874307,-500.0,0.00025892,2]
[355158869,1740937874316,-500.0,0.00025892,2]
[355158870,1740937874327,-661.31,0.00025892,2]
[355158871,1740937874338,-500.0,0.00025892,2]
[355158872,1740937874348,-664.68,0.00025892,2]
[355158873,1740937874358,-500.0,0.00025892,2]
[355158874,1740937874370,-500.0,0.00025892,2]
[355158875,1740937874388,-688.44,0.00025892,2]
[355158876,1740937874407,-799.43,0.00025892,2]
[355158877,1740937874418,-1011.96,0.00025892,2]
[355158878,1740937874431,-500.0,0.00025892,2]
[355158879,1740937874446,-547.39,0.00025892,2]
[355158880,1740937874458,-980.75,0.00025892,2]
[355158881,1740937874470,-758.27,0.00025892,2]
[355158882,1740937874483,-500.0,0.00025892,2]
[355158883,1740937874495,-638.55,0.00025892,2]
[355158884,1740937874508,-500.0,0.00025892,2]
[355158885,1740937874519,-500.0,0.00025892,2]
[355158886,1740937874533,-500.0,0.00025892,2]
[355158887,1740937874544,-500.0,0.00025892,2]
[355158888,1740937874555,-500.0,0.00025892,2]
[355158889,1740937874567,-537.89,0.00025892,2]
[355158890,1740937874579,-1342.57,0.00025892,2]
[355158891,1740937874591,-500.0,0.00025892,2]
[355158892,1740937874602,-501.29,0.00025892,2]
[355158893,1740937874612,-287.98,0.00025893,2]
[355158894,1740937874623,-399.58,0.00025893,2]
[355158895,1740937874635,-500.0,0.00025893,2]
[355158896,1740937874645,-500.0,0.00025893,2]
[355158897,1740937874656,-500.0,0.00025893,2]
[355158898,1740937874667,-1328.36,0.00025893,2]
[355158899,1740937874678,-400.963399,0.00025893,2]
[355158900,1740937874689,-877.08,0.00025893,2]
[355158901,1740937874704,-1696.63,0.00025893,2]
[355158902,1740937874716,-500.0,0.00025893,2]
[355158903,1740937874728,-500.0,0.00025893,2]
[355158904,1740937874739,-312.078972,0.00025893,2]
[355158905,1740937874750,-500.0,0.00025893,2]
[355158906,1740937874762,-992.81,0.00025893,2]
[355158907,1740937874774,-500.0,0.00025893,2]
[355158908,1740937874785,-500.0,0.00025893,2]
[355158909,1740937874796,-1164.54,0.00025893,2]
[355158910,1740937874806,-3123.18,0.00025893,2]
[355158911,1740937874818,-1410.0,0.00025893,2]
[355158912,1740937874831,-500.0,0.00025893,2]
[355158913,1740937874842,-241.8,0.00025893,2]
[355158914,1740937874854,-1234.93,0.00025893,2]
[355158915,1740937874865,-1043.6,0.00025893,2]
[355158916,1740937874879,-500.0,0.00025893,2]
[355158917,1740937874892,-1694.27,0.00025893,2]
[355158918,1740937874904,-200.0,0.00025893,2]
[355158919,1740937874916,-500.0,0.00025893,2]
[355158920,1740937874928,-1334.61,0.00025893,2]
[355158921,1740937874941,-784.6,0.00025893,2]
[355158922,1740937874956,-500.0,0.00025893,2]
[355158923,1740937874968,-1672.23,0.00025893,2]
[355158924,1740937874980,-500.0,0.00025893,2]
[355158925,1740937874994,-202.6,0.00025893,2]
[355158926,1740937875006,-2496.59,0.00025893,2]
[355158927,1740937875017,-1537.3,0.00025893,2]
[355158928,1740937875032,-490.93,0.00025893,2]
[355158929,1740937875044,-455.78,0.00025893,2]
[355158930,1740937875055,-294.96,0.00025893,2]
[355158931,1740937875066,-531.87,0.00025893,2]
[355158932,1740937875078,-500.0,0.00025893,2]
[355158933,1740937875089,-1129.86,0.00025893,2]
[355158934,1740937875099,-907.66,0.00025893,2]
[355158935,1740937875110,-598.93949,0.00025893,2]
[355158936,1740937875121,-1407.11,0.00025893,2]
[355158937,1740937875131,-500.0,0.00025893,2]
[355158938,1740937875150,-500.0,0.00025893,2]
[355158939,1740937875160,-500.0,0.00025893,2]
[355158940,1740937875171,-686.18,0.00025893,2]
[355158941,1740937875182,-500.0,0.00025893,2]
[355158942,1740937875197,-340.2,0.00025893,2]
[355158943,1740937875208,-489.19,0.00025893,2]
[355158944,1740937875220,-271.84,0.00025893,2]
[355158945,1740937875232,-649.02,0.00025893,2]
[355158946,1740937875243,-765.63,0.00025893,2]
[355158947,1740937875255,-500.0,0.00025893,2]
[355158948,1740937875266,-500.0,0.00025893,2]
[355158949,1740937875276,-1189.75,0.00025893,2]
[355158950,1740937875287,-500.0,0.00025893,2]
[355158951,1740937875298,-533.52,0.00025893,2]
[355158952,1740937875309,-500.0,0.00025893,2]
[355158953,1740937875320,-767.22,0.00025893,2]
[355158954,1740937875332,-2132.66,0.00025893,2]
[355158955,1740937875344,-500.0,0.00025894,2]
[355158956,1740937875355,-500.0,0.00025894,2]
[355158957,1740937875365,-500.0,0.00025894,2]
[355158958,1740937875376,-240.57,0.00025894,2]
[355158959,1740937875386,-500.0,0.00025894,2]
[355158960,1740937875396,-500.0,0.00025894,2]
[355158961,1740937875406,-500.0,0.00025894,2]
[355158962,1740937875416,-500.0,0.00025894,2]
[355158963,1740937875426,-561.04,0.00025894,2]
[355158964,1740937875436,-500.0,0.00025894,2]
[355158965,1740937875451,-571.0,0.00025894,2]
[355158966,1740937875463,-312.56,0.00025894,2]
[355158967,1740937875473,-500.0,0.00025894,2]
[355158968,1740937875484,-500.0,0.00025894,2]
[355158969,1740937875495,-500.0,0.00025894,2]
[355158970,1740937875506,-500.0,0.00025894,2]
[355158971,1740937875516,-500.0,0.00025894,2]
[355158972,1740937875527,-500.0,0.00025894,2]
[355158973,1740937875538,-500.0,0.00025894,2]
[355158974,1740937875549,-500.0,0.00025894,2]
[355158975,1740937875559,-324.44,0.00025894,2]
[355158976,1740937875570,-554.65,0.00025894,2]
[355158977,1740937875580,-500.0,0.00025894,2]
[355158978,1740937875591,-500.0,0.00025894,2]
[355158979,1740937875600,-500.0,0.00025894,2]
[355158980,1740937875611,-500.0,0.00025894,2]